fUSD/lending_fUSD_20241024
["ID","MTS","AMOUNT","RATE_DAILY","PERIOD"]
[340729983,1729739438614,-500.0,0.00057534,120]
[340729984,1729739438623,-500.0,0.00057534,120]
[340729985,1729739438632,-457.67826431,0.00057534,120]
[340729986,1729739438642,-500.0,0.00057534,120]
[340729987,1729739438651,-500.0,0.00057534,120]
[340729988,1729739438660,-500.0,0.00057534,120]
[340729989,1729739438669,-500.0,0.00057534,120]
[340729990,1729739438679,-500.0,0.00057534,120]
[340729991,1729739438688,-500.0,0.00057534,120]
[340729992,1729739438697,-162.42799342,0.00057534,120]
[340729993,1729739438706,-502.29716091,0.00057534,120]
[340729994,1729739438715,-508.615614,0.00057534,120]
[340729995,1729739438724,-503.44579809,0.00057534,120]
[340729996,1729739438733,-500.0,0.00057534,120]
[340729997,1729739438742,-500.0,0.00057534,120]
[340729998,1729739438751,-500.0,0.00057534,120]
[340729999,1729739438760,-500.0,0.00057534,120]
[340730000,1729739438770,-500.0,0.00057534,120]
[340730001,1729739438779,-500.0,0.00057534,120]
[340730002,1729739438788,-500.0,0.00057534,120]
[340730003,1729739438796,-500.0,0.00057534,120]
[340730004,1729739438805,-500.0,0.00057534,120]
[340730005,1729739438815,-500.0,0.00057534,120]
[340730006,1729739438824,-500.0,0.00057534,120]
[340730007,1729739438832,-500.0,0.00057534,120]
[340730009,1729739438842,-500.0,0.00057534,120]
[340730011,1729739438850,-500.0,0.00057534,120]
[340730013,1729739438859,-506.91793479,0.00057534,120]
[340730014,1729739438868,-658.35,0.00057534,120]
[340730016,1729739438878,-658.35,0.00057534,120]
[340730018,1729739438887,-658.35,0.00057534,120]
[340730020,1729739438896,-241.5033213,0.00057534,120]
[340730023,1729739438912,-416.8466787,0.00057534,120]
[340730025,1729739438921,-290.48923868,0.00057534,120]
[340730026,1729739438932,-367.86076132,0.00057534,120]
[340730027,1729739438941,-658.35,0.00057534,120]
[340730028,1729739438951,-189.81116304,0.00057534,120]
[340730029,1729739438961,-468.53883696,0.00057534,120]
[340730030,1729739438971,-380.85356426,0.00057534,120]
[340730033,1729739440315,-277.49643574,0.00057534,120]
[340730034,1729739440324,-658.35,0.00057534,120]
[340730035,1729739440333,-658.35,0.00057534,120]
[340730036,1729739440344,-500.0,0.00057534,120]
[340730037,1729739440355,-500.0,0.00057534,120]
[340730038,1729739440364,-500.0,0.00057534,120]
[340730039,1729739440373,-498.52984104,0.00057534,120]
[340730040,1729739440382,-243.073883,0.00057534,120]
[340730041,1729739440395,-256.926117,0.00057534,120]
[340730042,1729739440404,-500.0,0.00057534,120]
[340730043,1729739440413,-1.87168636,0.00057534,120]
[340730044,1729739440468,-498.12831364,0.00057534,120]
[340730045,1729739440478,-500.0,0.00057534,120]
[340730046,1729739440487,-500.0,0.00057534,120]
[340730047,1729739440495,-500.0,0.00057534,120]
[340730048,1729739440505,-1.87168636,0.00057534,120]
[340730049,1729739440516,-306.09729367,0.00057534,120]
[340730050,1729739440528,-192.03101997,0.00057534,120]
[340730051,1729739440537,-500.0,0.00057534,120]
[340730052,1729739440546,-500.0,0.00057534,120]
[340730053,1729739440555,-500.0,0.00057534,120]
[340730054,1729739440564,-500.0,0.00057534,120]
[340730055,1729739440573,-359.13215027,0.00057534,120]
[340730056,1729739440582,-500.0,0.00057534,120]
[340730057,1729739440591,-500.0,0.00057534,120]
[340730058,1729739440601,-500.0,0.00057534,120]
[340730059,1729739440610,-500.0,0.00057534,120]
[340730060,1729739440619,-500.0,0.00057534,120]
[340730061,1729739440628,-9.54839689,0.00057534,120]
[340730062,1729739440639,-490.45160311,0.00057534,120]
[340730063,1729739440649,-148.57648666,0.00057534,120]
[340730064,1729739440661,-351.42351334,0.00057534,120]
[340730065,1729739440673,-174.98648666,0.00057534,120]
[340730066,1729739440684,-2.70218747,0.00057534,120]
[340730067,1729739440693,-515.2610444,0.00057534,120]
[340730068,1729739440702,-523.09918347,0.00057534,120]
[340730069,1729739440711,-500.0,0.00057534,120]
[340730070,1729739440720,-505.75484172,0.00057534,120]
[340730071,1729739440729,-500.0,0.00057534,120]
[340730072,1729739440737,-500.0,0.00057534,120]
[340730073,1729739440746,-203.13614996,0.00057534,120]
[340730074,1729739440757,-296.86385004,0.00057534,120]
[340730075,1729739440766,-500.0,0.00057534,120]
[340730076,1729739440775,-33.35446433,0.00057534,120]
[340730077,1729739440786,-466.64553567,0.00057534,120]
[340730078,1729739440795,-500.0,0.00057534,120]
[340730079,1729739440805,-500.0,0.00057534,120]
[340730080,1729739440815,-233.50376428,0.00057534,120]
[340730103,1729739443429,-266.49623572,0.00057534,120]
[340730105,1729739443439,-500.0,0.00057534,120]
[340730107,1729739443450,-500.0,0.00057534,120]
[340730108,1729739443459,-500.0,0.00057534,120]
[340730110,1729739443468,-567.65252806,0.00057534,120]
[340730112,1729739443479,-500.0,0.00057534,120]
[340730114,1729739443489,-225.29864661,0.00057534,120]
[340730115,1729739443500,-500.0,0.00057534,14]
[340730116,1729739443511,-500.0,0.00057534,14]
[340730117,1729739443523,-500.0,0.00057534,14]
[340730118,1729739443532,-500.0,0.00057534,14]
[340730119,1729739443541,-500.0,0.00057534,14]
[340730120,1729739443550,-500.0,0.00057534,14]
[340730121,1729739443559,-500.0,0.00057534,14]
[340730122,1729739443571,-500.0,0.00057534,14]
[340730123,1729739443580,-500.0,0.00057534,14]
[340730124,1729739443590,-500.0,0.00057534,14]
[340730125,1729739443599,-1403.6,0.00057534,120]
[340730126,1729739443609,-1403.6,0.00057534,120]
[340730127,1729739443618,-500.0,0.00057534,120]
[340730128,1729739443627,-1403.6,0.00057534,120]
[340730129,1729739443637,-408.83937226,0.00057534,120]
[340730130,1729739443649,-994.76062774,0.00057534,120]
[340730131,1729739443658,-1403.6,0.00057534,120]
[340730132,1729739443667,-500.0,0.00057534,120]
[340730133,1729739443676,-90.01352142,0.00057534,120]
[340730134,1729739443687,-1313.58647858,0.00057534,120]
[340730135,1729739443697,-1403.6,0.00057534,120]
[340730136,1729739443707,-1403.6,0.00057534,120]
[340730137,1729739443717,-460.60294213,0.00057534,120]
[340730138,1729739443726,-1403.6,0.00057534,120]
[340730139,1729739443736,-12.17647931,0.00057534,120]
[340730140,1729739443747,-1391.42352069,0.00057534,120]
[340730141,1729739443757,-500.0,0.00057534,120]
[340730142,1729739443766,-500.0,0.00057534,120]
[340730143,1729739443775,-289.95354662,0.00057534,120]
[340730144,1729739443784,-832.09,0.00057534,120]
[340730145,1729739443794,-832.09,0.00057534,120]
[340730146,1729739443803,-832.09,0.00057534,120]
[340730147,1729739443811,-813.67923766,0.00057534,120]
[340730148,1729739443823,-18.41076234,0.00057534,120]
[340730149,1729739443831,-832.09,0.00057534,120]
[340730150,1729739443840,-832.09,0.00057534,120]
[340730151,1729739443849,-832.09,0.00057534,120]
[340730152,1729739443858,-832.09,0.00057534,120]
[340730153,1729739443867,-500.0,0.00057534,120]
[340730154,1729739443877,-500.0,0.00057534,120]
[340730155,1729739443886,-500.0,0.00057534,120]
[340730156,1729739443895,-500.0,0.00057534,120]
[340730157,1729739443904,-500.0,0.00057534,120]
[340730158,1729739443913,-500.0,0.00057534,120]
[340730159,1729739443922,-500.0,0.00057534,120]
[340730160,1729739444053,-500.0,0.00057534,120]
[340730161,1729739444063,-500.0,0.00057534,120]
[340730162,1729739444074,-500.0,0.00057534,120]
[340730163,1729739444083,-500.0,0.00057534,120]
[340730164,1729739444092,-500.0,0.00057534,120]
[340730165,1729739444101,-500.0,0.00057534,120]
[340730166,1729739444111,-500.0,0.00057534,120]
[340730167,1729739444120,-553.74927322,0.00057534,120]
[340730168,1729739444130,-500.0,0.00057534,120]
[340730169,1729739444139,-500.0,0.00057534,120]
[340730170,1729739444149,-500.0,0.00057534,120]
[340730171,1729739444158,-500.0,0.00057534,120]
[340730172,1729739444167,-495.79231481,0.00057534,120]
[340730173,1729739444176,-515.95486261,0.00057534,120]
[340730174,1729739444185,-528.34824718,0.00057534,120]
[340730175,1729739444195,-500.0,0.00057534,120]
[340730176,1729739444204,-500.0,0.00057534,120]
[340730177,1729739444213,-168.4607399,0.00057534,120]
[340730178,1729739444223,-527.83995481,0.00057534,120]
[340730179,1729739444232,-506.73410109,0.00057534,120]
[340730180,1729739444242,-528.41038469,0.00057534,120]
[340730181,1729739444252,-541.50548922,0.00057534,120]
[340730182,1729739444261,-527.91234812,0.00057534,120]
[340730183,1729739444270,-549.12808156,0.00057534,120]
[340730184,1729739444282,-303.18389646,0.00057534,120]
[340730185,1729739444291,-500.0,0.00057534,120]
[340730186,1729739444302,-500.0,0.00057534,120]
[340730187,1729739444311,-500.0,0.00057534,120]
[340730188,1729739444320,-500.0,0.00057534,120]
[340730189,1729739444330,-500.0,0.00057534,120]
[340730190,1729739444339,-500.0,0.00057534,120]
[340730191,1729739444352,-500.0,0.00057534,120]
[340730192,1729739444361,-500.0,0.00057534,120]
[340730193,1729739444371,-500.0,0.00057534,120]
[340730194,1729739444380,-641.77394353,0.00057534,120]
[340730195,1729739444390,-22490.69228097,0.00058255,2]
[340730196,1729739444402,-291.92242389,0.00058255,2]
[340730197,1729739444414,-387.87123895,0.00058255,2]
[340730198,1729739444430,-729.51405619,0.00058255,2]
[340730199,1729739444439,-177.11,0.00058295,30]
[340730200,1729739444448,-250.0,0.00058309,120]
[340730201,1729739444458,-160.08,0.00058514,2]
[340730202,1729739444467,-445.7348,0.00058596,2]
[340730203,1729739444476,-250.0,0.00058598,120]
[340730204,1729739444485,-250.0,0.00058601,120]
[340730205,1729739444494,-177.46,0.00058842,2]
[340730206,1729739444503,-1000.0,0.00059152,120]
[340730207,1729739444513,-756.83,0.00059315,60]
[340730208,1729739444522,-424.7,0.00059315,60]
[340730209,1729739444533,-424.7,0.00059315,60]
[340730210,1729739444542,-424.7,0.00059315,60]
[340730211,1729739444551,-897.62,0.00059341,60]
[340730212,1729739444560,-424.7,0.00059341,60]
[340730213,1729739444570,-162.49,0.00059512,120]
[340730214,1729739444579,-1270.2705,0.00059973,2]
[340730215,1729739444589,-619.1008,0.00059973,2]
[340730216,1729739444598,-1000.0,0.00059973,2]
[340730217,1729739444607,-2500.0,0.00059973,2]
[340730218,1729739444616,-4091.10252054,0.0005998,120]
[340730219,1729739444625,-500.0,0.00059999,120]
[340730220,1729739444635,-502.39526213,0.00059999,120]
[340730221,1729739444645,-658.35,0.00059999,120]
[340730222,1729739444654,-500.0,0.00059999,120]
[340730223,1729739444664,-500.0,0.00059999,120]
[340730224,1729739444674,-500.0,0.00059999,14]
[340730225,1729739444684,-1403.6,0.00059999,120]
[340730226,1729739444694,-832.09,0.00059999,120]
[340730227,1729739444704,-500.0,0.00059999,120]
[340730228,1729739444714,-4100.19218562,0.0006,120]
[340730229,1729739444724,-1074.23216469,0.0006,98]
[340730230,1729739444733,-52063.47977048,0.0006,10]
[340730231,1729739444745,-291.59768324,0.0006,10]
[340730233,1729739446433,-4855.4545189,0.0006,10]
[340730234,1729739446446,-1323.4,0.0006,10]
[340730267,1729740425143,-175.42,0.00015342,2]
[340730268,1729740425167,-170.88,0.00015342,2]
[340730269,1729740425187,-523.14907727,0.000159,2]
[340730277,1729740632371,-301.2900896,0.00014899,2]
[340730278,1729740632383,-1496.96613756,0.00014899,2]
[340730279,1729740632392,-300.0,0.00014998,2]
[340730280,1729740632402,-1530.99512783,0.00014999,2]
[340730284,1729740632413,-1552.423596,0.00014999,2]
[340730287,1729740632426,-2109.43741355,0.00014999,2]
[340730295,1729740632621,-639.66366804,0.00014999,2]
[340730296,1729740632633,-16398.05542308,0.00014999,2]
[340730297,1729740632645,-570.09,0.00014999,2]
[340730298,1729740632657,-658.25,0.00014999,2]
[340730299,1729740632668,-4079.76338417,0.00014999,2]
[340730300,1729740632678,-500.0,0.00014999,2]
[340730301,1729740632687,-153.24386568,0.00014999,2]
[340730302,1729740632697,-500.0,0.00014999,2]
[340730303,1729740632706,-500.0,0.00014999,2]
[340730304,1729740632716,-500.0,0.00014999,2]
[340730305,1729740632725,-500.0,0.00014999,2]
[340730306,1729740632734,-500.0,0.00014999,2]
[340730307,1729740632745,-150.0,0.00014999,2]
[340730308,1729740632754,-1471.74078588,0.00015,2]
[340730309,1729740632765,-716.59166736,0.00015,2]
[340730310,1729740632776,-406.77852015,0.00015,2]
[340730313,1729740638564,-13601.65539121,0.00015,2]
[340730314,1729740638576,-17381.48089212,0.00015,2]
[340730315,1729740638586,-4009.83074,0.00015,2]
[340730316,1729740638597,-592.08569065,0.00015,2]
[340730317,1729740638609,-1851.34130064,0.00015,2]
[340730318,1729740638620,-729.82228752,0.00015,2]
[340730319,1729740638630,-289.4002629,0.00015,2]
[340730320,1729740638641,-281.55,0.00015,2]
[340730321,1729740638652,-464.49215407,0.00015,2]
[340730322,1729740638662,-273.2828905,0.00015,2]
[340730323,1729740638673,-594.5,0.00015,2]
[340730324,1729740638683,-2183.16426548,0.00015,2]
[340730325,1729740638693,-1177.0,0.00015,2]
[340730326,1729740638771,-450.87290596,0.00015,2]
[340730327,1729740638783,-6288.37569813,0.00015,2]
[340730328,1729740638797,-16316.87791727,0.00015,2]
[340730329,1729740638981,-6628.30439943,0.00015,2]
[340730331,1729740640388,-343.13376577,0.00015,2]
[340730332,1729740640399,-3369.45,0.00015,2]
[340730333,1729740640682,-1527.510008,0.00015,2]
[340730334,1729740640693,-534.65427157,0.00015,2]
[340730335,1729740640704,-114380.06417085,0.00015,2]
[340730336,1729740640714,-1160.93975803,0.00015,2]
[340730337,1729740640725,-2453.15286604,0.00015,2]
[340730338,1729740640736,-4361.77367105,0.00015,2]
[340730339,1729740640747,-383.91000001,0.00015,2]
[340730340,1729740640909,-17390.5773954,0.00015,2]
[340730342,1729740640922,-2210.84057419,0.00015686,2]
[340730344,1729740640932,-33637.24658226,0.000159,2]
[340730346,1729740640942,-150.0,0.00016124,2]
[340730348,1729740640951,-599.95759259,0.0002,2]
[340730350,1729740640963,-2210.84057414,0.00021488,2]
[340730352,1729740640972,-2210.84057414,0.00027289,2]
[340730354,1729740640982,-2210.84057414,0.00033091,15]
[340730356,1729740640992,-2210.84057414,0.00038892,15]
[340730358,1729740641001,-1574.29486167,0.00041183,30]
[340730360,1729740641013,-3235.7682179,0.00041183,30]
[340730362,1729740641022,-2210.84057414,0.00044694,15]
[340730364,1729740641034,-170.96,0.00045273,2]
[340730366,1729740641044,-787.91,0.00049183,2]
[340730368,1729740641054,-173.623447,0.000499,2]
[340730371,1729740641064,-300.5028,0.0005,2]
[340730373,1729740641074,-1384.2207,0.0005015,2]
[340730374,1729740641083,-181.38390892,0.0005025,120]
[340730376,1729740641092,-530.5,0.00050257,2]
[340730378,1729740641101,-2128.01104937,0.00050495,15]
[340730482,1729740644724,-1000.0,0.0005015,2]
[340730483,1729740644733,-82.82952477,0.00050495,15]
[340730484,1729740644742,-250.0,0.0005094,120]
[340730485,1729740644751,-500.0,0.00054795,120]
[340730486,1729740644760,-183.61,0.00055218,2]
[340730487,1729740644769,-175.42,0.0005589,2]
[340730488,1729740644778,-2210.84057414,0.00056297,15]
[340730489,1729740644787,-1433.0,0.000567,120]
[340730490,1729740644795,-7114.93,0.00057243,2]
[340730491,1729740644804,-183.61,0.00057482,2]
[340730492,1729740644813,-332.6,0.00057534,120]
[340730493,1729740644822,-154.3114049,0.00057534,120]
[340730494,1729740644832,-500.0,0.00057534,120]
[340730495,1729740644840,-1740.17,0.00057926,2]
[340730496,1729740644850,-169.29,0.00057966,2]
[340730497,1729740644860,-250.0,0.00058161,120]
[340730498,1729740644869,-2199.14,0.00058308,30]
[340730499,1729740644878,-250.0,0.00058334,120]
[340730500,1729740644887,-150.0,0.00058342,2]
[340730501,1729740644896,-1000.0,0.00058947,120]
[340730502,1729740644906,-172.61,0.00059021,2]
[340730503,1729740644915,-549.888,0.00059143,117]
[340730504,1729740644926,-174.293,0.00059143,117]
[340730505,1729740644934,-659.31,0.00059315,60]
[340730506,1729740644944,-9990.75,0.000596,90]
[340730507,1729740644954,-220.1412,0.00059673,2]
[340730508,1729740644964,-5610.6806,0.00059673,2]
[340730509,1729740644975,-598.1117,0.00059673,2]
[340730511,1729740644985,-319.20003682,0.00059673,31]
[340730513,1729740644996,-183.61,0.00059746,2]
[340730515,1729740645006,-6500.6216,0.00059773,2]
[340730517,1729740645017,-25809.2764,0.00059773,2]
[340730519,1729740645028,-3400.2782,0.00059773,2]
[340730521,1729740645037,-22030.5537,0.00059773,2]
[340730523,1729740645048,-500.0,0.00059773,2]
[340730525,1729740645057,-1903.1847,0.00059773,2]
[340730527,1729740645067,-4196.1779,0.00059773,2]
[340730529,1729740645077,-1000.0,0.00059773,2]
[340730530,1729740645086,-2029.8645,0.00059773,2]
[340730532,1729740645095,-1000.0,0.00059773,2]
[340730534,1729740645104,-1012.2213,0.00059773,2]
[340730536,1729740645113,-573.8441,0.00059773,2]
[340730537,1729740645122,-992.3791,0.00059773,2]
[340730539,1729740645132,-640.1809,0.00059773,2]
[340730541,1729740645141,-2500.0,0.00059773,2]
[340730543,1729740645150,-55529.00906156,0.00059863,120]
[340730545,1729740645162,-25.99093844,0.00059863,120]
[340730547,1729740645171,-1231.80402244,0.00059863,14]
[340730549,1729740645180,-220.29265876,0.00059863,41]
[340730551,1729740645190,-539.67849584,0.00059872,31]
[340730553,1729740645200,-513.62442049,0.00059872,120]
[340730555,1729740645210,-527.07528856,0.00059872,120]
[340730557,1729740645219,-586.2886485,0.00059872,120]
[340730559,1729740645228,-270.79059117,0.00059872,120]
[340730561,1729740645236,-571.96,0.00059872,120]
[340730563,1729740645245,-295.6549358,0.00059872,120]
[340730565,1729740645257,-76.27116102,0.00059872,120]
[340730567,1729740645266,-832.47,0.00059872,120]
[340730569,1729740645276,-621.46,0.00059872,120]
[340730570,1729740645285,-500.0,0.00059872,120]
[340730572,1729740645294,-500.0,0.00059872,120]
[340730574,1729740645304,-500.0,0.00059872,120]
[340730576,1729740645313,-603.11194203,0.00059872,120]
[340730578,1729740645323,-332.6,0.00059872,120]
[340730580,1729740645333,-32847.11853459,0.00059873,2]
[340730582,1729740645344,-6020.00259753,0.00059873,2]
[340730584,1729740645357,-1872.22141378,0.00059873,2]
[340730586,1729740645368,-2756.81860132,0.00059873,2]
[340730587,1729740645380,-9245.25,0.00059873,2]
[340730588,1729740645391,-3011.29539032,0.00059873,2]
[340730589,1729740645402,-435.216782,0.00059873,2]
[340730590,1729740645413,-500.0,0.00059873,2]
[340730591,1729740645424,-12985.68153013,0.00059873,2]
[340730592,1729740645437,-4996.95801704,0.00059873,2]
[340730593,1729740645460,-308.69134795,0.00059872,120]
[340730594,1729740645471,-10432.17760147,0.00059873,2]
[340730595,1729740645483,-511.74477419,0.00059873,2]
[340730596,1729740645496,-2829.58704795,0.00059873,2]
[340730597,1729740645520,-769.133491,0.00059873,2]
[340730598,1729740645532,-3664.28065587,0.00059873,2]
[340730599,1729740645544,-4325.67948297,0.00059873,2]
[340730600,1729740645557,-1269.05719409,0.00059873,2]
[340730601,1729740646436,-673.8,0.00059873,2]
[340730602,1729740646716,-1301.37556257,0.00059873,2]
[340730603,1729740646731,-6412.42202318,0.00059873,2]
[340730604,1729740646741,-4020.4472,0.000599,2]
[340730605,1729740646752,-214.78971449,0.00059932,7]
[340730606,1729740646764,-6774.92212342,0.00059943,14]
[340730607,1729740646774,-615.90201122,0.00059951,14]
[340730608,1729740646783,-615.90201122,0.00059952,14]
[340730609,1729740646792,-153.65,0.00059952,120]
[340730610,1729740646801,-500.0,0.00059961,120]
[340730611,1729740646811,-383.3461757,0.00059961,120]
[340730612,1729740646821,-500.0,0.00059961,120]
[340730613,1729740646830,-311.03294595,0.00059961,120]
[340730614,1729740646843,-188.96705405,0.00059961,120]
[340730615,1729740646856,-238.53036385,0.00059961,120]
[340730616,1729740646871,-194.50377939,0.00059961,120]
[340730617,1729740646881,-151.43653552,0.00059961,120]
[340730618,1729740646891,-500.0,0.00059961,21]
[340730619,1729740646900,-233.86806947,0.00059961,120]
[340730620,1729740646910,-494.8547,0.00059961,120]
[340730621,1729740646921,-500.0,0.00059961,120]
[340730622,1729740646931,-500.0,0.00059961,120]
[340730624,1729740646941,-500.0,0.00059961,120]
[340730626,1729740646950,-500.0,0.00059961,120]
[340730628,1729740646960,-430.55244405,0.00059961,120]
[340730630,1729740646970,-500.0,0.00059961,120]
[340730631,1729740646978,-809.34,0.00059961,120]
[340730632,1729740646988,-590.07385847,0.00059961,120]
[340730633,1729740646998,-159.29421967,0.00059961,120]
[340730634,1729740647008,-500.0,0.00059962,120]
[340730635,1729740647017,-500.0,0.00059962,120]
[340730636,1729740647027,-502.59172577,0.00059962,120]
[340730637,1729740647036,-501.35410687,0.00059962,120]
[340730638,1729740647046,-500.0,0.00059962,120]
[340730639,1729740647055,-503.76234651,0.00059962,120]
[340730640,1729740647064,-500.0,0.00059962,120]
[340730641,1729740647074,-500.0,0.00059962,120]
[340730642,1729740647083,-504.43051593,0.00059962,120]
[340730643,1729740647092,-501.80629332,0.00059962,120]
[340730644,1729740647102,-545.79396862,0.00059962,120]
[340730645,1729740647119,-502.20430076,0.00059962,120]
[340730646,1729740647128,-557.437526,0.00059962,120]
[340730647,1729740647138,-155.66779531,0.00059962,120]
[340730648,1729740647148,-500.0,0.00059962,120]
[340730649,1729740647158,-592.78287435,0.00059962,120]
[340730650,1729740647168,-500.0,0.00059962,120]
[340730651,1729740647177,-296.85386184,0.00059962,120]
[340730652,1729740647186,-505.35658089,0.00059962,120]
[340730653,1729740647196,-514.32191367,0.00059962,120]
[340730654,1729740647205,-500.0,0.00059962,120]
[340730655,1729740647214,-503.70396158,0.00059962,120]
[340730656,1729740647224,-502.05118033,0.00059962,120]
[340730657,1729740647234,-500.0,0.00059962,120]
[340730658,1729740647243,-507.13354622,0.00059962,120]
[340730659,1729740647253,-404.8620876,0.00059962,120]
[340730660,1729740647263,-500.0,0.00059962,120]
[340730661,1729740647392,-516.30721062,0.00059962,120]
[340730662,1729740647403,-503.74299588,0.00059962,120]
[340730663,1729740647413,-538.01538247,0.00059962,120]
[340730664,1729740647423,-502.11548007,0.00059962,30]
[340730665,1729740647433,-529.25352927,0.00059962,120]
[340730666,1729740647442,-506.3283203,0.00059962,120]
[340730667,1729740647452,-503.65914639,0.00059962,120]
[340730668,1729740647462,-587.19219592,0.00059962,120]
[340730669,1729740647472,-535.61961014,0.00059962,120]
[340730670,1729740647482,-509.53468931,0.00059962,120]
[340730671,1729740647491,-368.86531454,0.00059962,120]
[340730672,1729740647504,-1212.06,0.00059962,120]
[340730673,1729740647514,-1212.06,0.00059962,120]
[340730674,1729740647524,-514.88450709,0.00059962,120]
[340730675,1729740647533,-548.78969772,0.00059962,120]
[340730676,1729740647543,-500.0,0.00059962,120]
[340730677,1729740647556,-503.37991841,0.00059962,120]
[340730678,1729740647565,-253.86003714,0.00059962,120]
[340730679,1729740647575,-502.86172967,0.00059962,120]
[340730680,1729740647585,-500.0,0.00059962,120]
[340730681,1729740647595,-585.53506109,0.00059962,120]
[340730682,1729740647604,-522.6544,0.00059962,120]
[340730683,1729740647614,-500.0,0.00059962,120]
[340730684,1729740647623,-561.09188624,0.00059962,120]
[340730685,1729740647633,-500.0,0.00059962,120]
[340730686,1729740647643,-500.0,0.00059962,120]
[340730687,1729740647652,-500.0,0.00059962,120]
[340730688,1729740647662,-500.0,0.00059962,120]
[340730689,1729740647671,-500.0,0.00059962,120]
[340730690,1729740647681,-500.0,0.00059962,120]
[340730691,1729740647690,-500.0,0.00059962,120]
[340730692,1729740647699,-500.0,0.00059962,120]
[340730693,1729740647709,-500.0,0.00059962,120]
[340730694,1729740647719,-538.5758402,0.00059962,120]
[340730695,1729740647728,-500.0,0.00059962,21]
[340730696,1729740647738,-500.0,0.00059962,120]
[340730697,1729740647747,-500.0,0.00059962,120]
[340730698,1729740647756,-595.70392578,0.00059962,120]
[340730699,1729740647766,-500.0,0.00059962,120]
[340730700,1729740647777,-500.0,0.00059962,120]
[340730701,1729740647786,-500.0,0.00059962,120]
[340730702,1729740647796,-500.0,0.00059962,120]
[340730703,1729740647806,-500.0,0.00059962,120]
[340730704,1729740647815,-500.0,0.00059962,120]
[340730705,1729740647825,-500.0,0.00059962,120]
[340730706,1729740647835,-571.96,0.00059962,120]
[340730707,1729740647844,-571.96,0.00059962,120]
[340730708,1729740647853,-500.0,0.00059962,120]
[340730709,1729740647862,-546.02491451,0.00059962,120]
[340730710,1729740647872,-500.0,0.00059962,120]
[340730711,1729740647881,-500.0,0.00059962,120]
[340730712,1729740647890,-500.0,0.00059962,120]
[340730713,1729740647900,-500.0,0.00059962,120]
[340730714,1729740647909,-536.08430733,0.00059962,120]
[340730715,1729740647922,-500.0,0.00059962,120]
[340730716,1729740647932,-553.68957321,0.00059962,120]
[340730717,1729740647942,-646.1930196,0.00059962,120]
[340730718,1729740647952,-832.47,0.00059962,120]
[340730719,1729740647961,-832.47,0.00059962,120]
[340730720,1729740647972,-633.84116664,0.00059962,120]
[340730721,1729740647982,-621.46,0.00059962,120]
[340730722,1729740647991,-621.46,0.00059962,120]
[340730723,1729740648002,-500.0,0.00059962,120]
[340730724,1729740648011,-500.0,0.00059962,120]
[340730725,1729740648022,-532.37587509,0.00059962,120]
[340730726,1729740648031,-512.15765708,0.00059962,120]
[340730727,1729740648040,-279.84440356,0.00059962,120]
[340730728,1729740648051,-510.13521914,0.00059962,120]
[340730729,1729740648060,-500.0,0.00059962,120]
[340730730,1729740648069,-500.0,0.00059962,120]
[340730731,1729740648079,-500.0,0.00059962,120]
[340730732,1729740648088,-500.0,0.00059962,120]
[340730733,1729740648098,-500.0,0.00059962,120]
[340730734,1729740648107,-513.87746518,0.00059962,120]
[340730735,1729740648120,-503.37934539,0.00059962,120]
[340730736,1729740648130,-500.0,0.00059962,120]
[340730737,1729740648139,-162.7007,0.00059962,120]
[340730738,1729740648149,-500.0,0.00059962,120]